bitfinex/quotes_SOLUSD_20240916
["timestamp","ask_amount","ask_price","bid_price","bid_amount"]
[1726529090117,30.2534,131.69,131.62,9.43497762]
[1726529094234,22.6597,131.69,131.63,14.12696403]
[1726529094403,22.6597,131.69,131.59,23.776884]
[1726529094404,22.6597,131.69,131.64,10.88615677]
[1726529094728,22.6597,131.69,131.65,25.08085066]
[1726529094916,22.6597,131.69,131.65,14.12696403]
[1726529095237,22.6597,131.69,131.65,15.64586663]
[1726529095520,22.6597,131.69,131.66,14.12696403]
[1726529096912,22.6597,131.69,131.65,23.56194165]
[1726529099019,22.6597,131.69,131.65,14.12696403]
[1726529099331,22.6597,131.69,131.65,15.64586794]
[1726529099847,22.6597,131.69,131.65,25.08084556]
[1726529100131,22.6597,131.69,131.65,15.64586794]
[1726529101129,22.6597,131.69,131.65,25.06446282]
[1726529101426,22.6597,131.69,131.65,23.54555891]
[1726529101634,22.6597,131.69,131.65,14.12696403]
[1726529103018,22.6597,131.69,131.64,9.41859488]
[1726529103019,22.6597,131.69,131.66,15.64586763]
[1726529103216,22.6597,131.69,131.67,14.12696403]
[1726529103806,16.4199,131.69,131.67,14.12696403]
[1726529109033,0.2284589,131.7,131.67,14.12696403]
[1726529109935,0.2284589,131.7,131.68,14.12696403]
[1726529115152,0.2284589,131.7,131.69,14.12696403]
[1726529127564,0.2284589,131.7,131.66,25.81733165]
[1726529127765,0.2284589,131.7,131.68,14.12696403]
[1726529129567,0.2284589,131.7,131.66,20.0]
[1726529129932,15.7168589,131.7,131.64,14.12696403]
[1726529131566,15.7168589,131.7,131.65,14.12696403]
[1726529131971,15.7168589,131.7,131.64,14.12696403]
[1726529135263,15.7168589,131.7,131.63,29.42903165]
[1726529135453,15.7168589,131.7,131.65,14.12696403]
[1726529135657,15.7168589,131.7,131.64,14.12696403]
[1726529136055,15.7168589,131.7,131.6,20.0]
[1726529136362,15.7168589,131.7,131.62,14.12696403]
[1726529136768,23.3098589,131.7,131.62,14.12696403]
[1726529136965,23.776884,131.69,131.61,9.4280479]
[1726529137158,23.776884,131.69,131.59,15.5934]
[1726529137159,23.776884,131.69,131.62,14.12696403]
[1726529137366,21.8889,131.68,131.62,14.12696403]
[1726529137561,20.0,131.67,131.6,9.4280479]
[1726529137788,20.0,131.67,131.57,6.4363]
[1726529137789,20.0,131.67,131.59,9.43881725]
[1726529138083,20.0,131.67,131.6,14.12696403]
[1726529138785,20.0,131.67,131.59,23.56578128]
[1726529138987,20.0,131.67,131.6,14.12696403]
[1726529139154,20.0,131.67,131.6,17.91081954]
[1726529139476,20.0,131.67,131.6,14.12696403]
[1726529139874,20.0,131.67,131.6,17.91081954]
[1726529140190,20.0,131.67,131.6,14.12696403]
[1726529140485,20.0,131.67,131.6,17.91104051]
[1726529140679,20.0,131.67,131.6,14.12696403]
[1726529143285,20.0,131.67,131.61,14.12696403]
[1726529143670,20.0,131.67,131.61,15.64633137]
[1726529144793,20.0,131.67,131.61,14.12696403]
[1726529146594,20.0,131.67,131.6,14.12696403]
[1726529148697,20.0,131.67,131.61,14.12696403]
[1726529150792,21.8889,131.68,131.64,14.12696403]
[1726529151114,21.8889,131.68,131.62,14.12696403]
[1726529152383,21.8889,131.68,131.63,14.12696403]
[1726529154695,21.8889,131.68,131.62,14.12696403]
[1726529155302,15.4644,131.68,131.67,14.12696403]
[1726529155695,0.2284589,131.7,131.67,14.12696403]
[1726529156004,0.2284589,131.7,131.68,0.75922932]
[1726529157390,0.2284589,131.7,131.67,14.12696403]
[1726529158996,0.2284589,131.7,131.68,1.51865656]
[1726529159295,0.2284589,131.7,131.67,14.12696403]
[1726529160198,0.2284589,131.7,131.68,1.51859163]
[1726529160505,0.2284589,131.7,131.67,14.12696403]
[1726529161907,0.2284589,131.7,131.69,14.12696403]
[1726529183391,0.2284589,131.7,131.69,57.90384803]
[1726529184120,0.2284589,131.7,131.69,87.90384803]
[1726529186714,0.2284589,131.7,131.69,50.0]
[1726529186925,0.2284589,131.7,131.69,64.12696403]
[1726529187099,0.2284589,131.7,131.69,30.0]
[1726529187305,0.2284589,131.7,131.69,44.12696403]
[1726529189939,0.2284589,131.7,131.69,43.62696403]
[1726529198113,0.2284589,131.7,131.69,14.12696403]
[1726529200326,0.2284589,131.7,131.69,17.90278919]
[1726529200527,0.2284589,131.7,131.69,27.32438662]
[1726529200721,0.2284589,131.7,131.69,14.12696403]
[1726529200924,0.2284589,131.7,131.69,17.90278919]
[1726529201333,0.2284589,131.7,131.69,27.32438662]
[1726529201544,0.2284589,131.7,131.69,23.54856146]
[1726529202224,0.2284589,131.7,131.69,14.12696403]
[1726529202413,0.2284589,131.7,131.69,27.32174869]
[1726529203216,0.2284589,131.7,131.69,27.32090204]
[1726529203417,0.2284589,131.7,131.69,31.09544314]
[1726529204720,0.2284589,131.7,131.69,27.32090204]
[1726529205427,0.2284589,131.7,131.69,31.09421006]
[1726529206319,0.2284589,131.7,131.69,31.09056712]
[1726529206931,0.2284589,131.7,131.69,27.3172591]
[1726529207322,0.2284589,131.7,131.69,57.3172591]
[1726529207520,0.2284589,131.7,131.69,47.90194254]
[1726529208626,0.2284589,131.7,131.69,51.67499832]
[1726529209326,0.2284589,131.7,131.69,47.90001981]
[1726529209922,0.2284589,131.7,131.69,44.12696403]
[1726529210126,0.2284589,131.7,131.69,47.9009133]
[1726529213247,0.2284589,131.7,131.69,44.12696403]
[1726529213645,0.2284589,131.7,131.69,30.0]
[1726529213830,0.2284589,131.7,131.69,47.90052751]
[1726529214230,0.2284589,131.7,131.69,33.77356348]
[1726529214641,0.2284589,131.7,131.69,3.77356348]
[1726529215337,0.2284589,131.7,131.68,23.54824827]
[1726529215545,0.2284589,131.7,131.69,3.77707507]
[1726529216853,0.2284589,131.7,131.68,23.55034728]
[1726529217152,0.2284589,131.7,131.69,3.77665578]
[1726529217529,0.2284589,131.7,131.69,7.55323595]
[1726529218430,0.2284589,131.7,131.69,21.68019998]
[1726529219124,0.2284589,131.7,131.69,17.9035442]
[1726529219654,0.2284589,131.7,131.69,28.84510096]
[1726529219832,0.2284589,131.7,131.69,19.42190676]
[1726529220150,0.2284589,131.7,131.69,15.64532659]
[1726529220447,0.2284589,131.7,131.69,19.42086252]
[1726529222444,0.2284589,131.7,131.69,61.67938396]
[1726529222836,0.2284589,131.7,131.69,91.67938396]
[1726529225444,0.2284589,131.7,131.69,93.19746394]
[1726529227535,0.2584707,131.74,131.7,20.0]
[1726529227875,0.2584707,131.74,131.73,34.12696403]
[1726529228036,0.2584707,131.74,131.73,35.64477902]
[1726529228234,0.2584707,131.74,131.73,34.12696403]
[1726529228436,0.2584707,131.74,131.73,37.90249996]
[1726529228755,0.2584707,131.74,131.73,67.90249996]
[1726529231161,0.2584707,131.74,131.73,67.89885544]
[1726529231851,0.2584707,131.74,131.73,91.67573944]
[1726529233048,0.2584707,131.74,131.73,101.08791915]
[1726529233644,0.2584707,131.74,131.73,91.67573944]
[1726529235865,0.2584707,131.74,131.73,61.67573944]
[1726529237072,0.2584707,131.74,131.73,57.90384803]
[1726529237363,0.2584707,131.74,131.73,61.67301582]
[1726529238752,0.2584707,131.74,131.73,93.19077798]
[1726529238944,0.2584707,131.74,131.73,103.03413379]
[1726529239541,6.3519707,131.78,131.74,43.776884]
[1726529239542,0.2584707,131.78,131.74,43.776884]
[1726529239751,0.2584707,131.78,131.77,14.12696403]
[1726529243144,0.2584707,131.78,131.77,39.42134673]
[1726529243348,0.2584707,131.78,131.77,37.90384803]
[1726529244166,0.2584707,131.78,131.75,12.10271548]
[1726529244471,0.2584707,131.78,131.77,14.12696403]
[1726529244849,0.2584707,131.78,131.76,50.0]
[1726529245048,0.2584707,131.78,131.77,14.12696403]
[1726529245255,0.2584707,131.78,131.76,30.0]
[1726529245675,0.2584707,131.78,131.75,14.12696403]
[1726529247278,0.2584707,131.78,131.77,14.12696403]
[1726529250963,0.2584707,131.78,131.77,37.90384803]
[1726529259976,0.2584707,131.78,131.77,39.42056674]
[1726529260345,0.2584707,131.78,131.77,59.42056674]
[1726529260544,0.2584707,131.78,131.77,57.90384803]
[1726529262271,0.2584707,131.78,131.77,61.66816003]
[1726529264069,0.2584707,131.78,131.77,23.764312]
[1726529264269,0.2584707,131.78,131.76,14.12696403]
[1726529265181,0.2584707,131.78,131.74,9.39845322]
[1726529265383,0.2584707,131.78,131.75,30.0]
[1726529266096,0.2584707,131.78,131.74,14.12696403]
[1726529266271,0.2584707,131.78,131.75,14.12696403]
[1726529267783,0.2584707,131.78,131.76,14.12696403]
[1726529281092,0.2584707,131.78,131.77,14.12696403]
[1726529282203,0.2584707,131.78,131.77,37.90384803]
[1726529284403,0.2584707,131.78,131.77,67.90384803]
[1726529285868,0.2584707,131.78,131.77,89.42108483]
[1726529286294,0.2584707,131.78,131.77,98.80926905]
[1726529287274,0.2584707,131.78,131.77,97.29203225]
[1726529288498,0.2584707,131.78,131.77,95.57372043]
[1726529288799,0.2584707,131.78,131.77,86.18553621]
[1726529288998,0.2584707,131.78,131.77,95.57496391]
[1726529289299,0.2584707,131.78,131.77,86.18553621]
[1726529289694,0.2584707,131.78,131.77,95.57496391]
[1726529291199,0.2584707,131.78,131.77,62.40865221]
[1726529291398,0.2584707,131.78,131.77,12.40865221]
[1726529292800,0.2584707,131.78,131.76,20.0]
[1726529292976,0.2584707,131.78,131.76,32.40865221]
[1726529293181,0.2584707,131.78,131.75,21.79807991]
[1726529295500,0.2584707,131.78,131.76,12.40865221]
[1726529295703,0.2584707,131.78,131.75,9.3894277]
[1726529296001,0.2584707,131.78,131.76,12.40865221]
[1726529299901,0.2584707,131.78,131.77,9.44184752]
[1726529300504,0.2584707,131.78,131.74,12.40865221]
[1726529300804,0.2584707,131.78,131.75,9.44462869]
[1726529301006,0.2584707,131.78,131.76,9.44465449]
[1726529301188,0.2584707,131.78,131.73,9.39317687]
[1726529301390,0.2584707,131.78,131.74,9.44530406]
[1726529301591,0.2584707,131.78,131.75,9.44530406]
[1726529301805,0.2584707,131.78,131.76,9.44707801]
[1726529301990,0.2584707,131.78,131.74,12.40865221]
[1726529302190,0.2584707,131.78,131.75,9.44874844]
[1726529302400,0.2584707,131.78,131.74,12.40865221]
[1726529302597,0.2584707,131.78,131.75,9.44858984]
[1726529302798,0.2584707,131.78,131.74,12.40865221]
[1726529303086,0.2584707,131.78,131.75,9.44899677]
[1726529303287,0.2584707,131.78,131.74,12.40865221]
[1726529303482,15.4372707,131.78,131.75,9.44835708]
[1726529303705,15.4372707,131.78,131.73,12.40865221]
[1726529303904,15.4372707,131.78,131.74,9.44795466]
[1726529304105,15.4372707,131.78,131.75,9.44795466]
[1726529304411,23.0257707,131.78,131.74,9.44962986]
[1726529304597,23.0257707,131.78,131.74,9.45041607]
[1726529304799,23.0257707,131.78,131.72,11.81302008]
[1726529305304,7.589,131.77,131.7,12.40865221]
[1726529311795,7.589,131.77,131.69,12.40865221]
[1726529312196,21.6438,131.76,131.69,12.40865221]
[1726529314798,21.6438,131.76,131.7,12.40865221]
[1726529317820,21.6438,131.76,131.72,12.40865221]
[1726529325312,15.2552,131.76,131.72,12.40865221]
[1726529325498,15.2552,131.76,131.74,12.40865221]
[1726529326201,15.2552,131.76,131.73,12.40865221]
[1726529331913,15.2552,131.76,131.7,43.776884]
[1726529332109,15.2552,131.76,131.71,42.40865221]
[1726529332326,15.2552,131.76,131.71,12.40865221]
[1726529332704,21.8825,131.76,131.71,12.40865221]
[1726529335823,21.8825,131.76,131.7,12.40865221]
[1726529336218,29.472,131.76,131.7,12.40865221]
[1726529337313,21.8825,131.76,131.7,12.40865221]
[1726529337715,21.8825,131.76,131.68,20.0]
[1726529337922,21.8825,131.76,131.7,12.40865221]
[1726529345340,21.8825,131.76,131.71,13.9269857]
[1726529346045,21.8825,131.76,131.71,12.40865221]
[1726529348114,21.8825,131.76,131.71,16.17555118]
[1726529348315,21.8825,131.76,131.71,12.40865221]
[1726529348921,21.8825,131.76,131.71,16.17555118]
[1726529349121,21.8825,131.76,131.71,12.40865221]
[1726529350219,21.8825,131.76,131.71,16.17533894]
[1726529350439,21.8825,131.76,131.71,12.40865221]
[1726529354643,21.8825,131.76,131.72,1.51816512]
[1726529356241,21.8825,131.76,131.72,5.28327989]
[1726529356436,21.8825,131.76,131.72,3.76511477]
[1726529356937,21.8825,131.76,131.71,12.40865221]
[1726529360240,21.8825,131.76,131.72,3.76518314]
[1726529364845,21.8825,131.76,131.73,9.44688205]
[1726529365046,21.8825,131.76,131.72,3.76518314]
[1726529365243,21.8825,131.76,131.73,9.44689868]
[1726529365452,21.8825,131.76,131.7,21.80379935]
[1726529365625,21.8825,131.76,131.71,21.2557098]
[1726529365825,21.8825,131.76,131.71,9.44698213]
[1726529366123,21.8825,131.76,131.71,3.76521215]
[1726529366450,21.8825,131.76,131.7,12.40865221]
[1726529366653,21.8825,131.76,131.71,11.81197064]
[1726529366836,21.8825,131.76,131.7,12.40865221]
[1726529367020,21.8825,131.76,131.71,11.81197064]
[1726529367225,29.4724,131.76,131.69,21.80384187]
[1726529367425,29.4724,131.76,131.7,11.81245841]
[1726529367721,29.4724,131.76,131.71,11.81245841]
[1726529367924,29.4724,131.76,131.69,21.80384187]
[1726529368127,29.4724,131.76,131.7,11.81248225]
[1726529368325,29.4724,131.76,131.71,11.81248225]
[1726529368642,29.4724,131.76,131.69,21.82164447]
[1726529368843,29.4724,131.76,131.7,11.81149453]
[1726529369036,29.4724,131.76,131.71,11.81149453]
[1726529369234,29.4724,131.76,131.69,21.82377042]
[1726529369453,29.4724,131.76,131.7,11.81147174]
[1726529369644,29.4724,131.76,131.71,11.81147174]
[1726529369842,29.4724,131.76,131.7,11.81147174]
[1726529370040,29.4724,131.76,131.71,11.81147174]
[1726529370246,21.8825,131.76,131.7,24.23792655]
[1726529370438,21.8825,131.76,131.71,11.81147174]
[1726529370838,21.8825,131.76,131.71,24.23792655]
[1726529371532,21.8825,131.76,131.71,12.42645481]
[1726529371732,21.8825,131.76,131.71,24.23792655]
[1726529371932,21.8825,131.76,131.71,12.42645481]
[1726529372134,21.8825,131.76,131.71,24.23792655]
[1726529372435,21.8825,131.76,131.71,12.42645481]
[1726529372635,21.8825,131.76,131.71,24.23600265]
[1726529372842,21.8825,131.76,131.7,24.23600265]
[1726529373048,21.8825,131.76,131.7,12.42645481]
[1726529375372,21.8825,131.76,131.69,9.39575719]
[1726529375660,21.8825,131.76,131.7,12.42645481]
[1726529377148,21.8825,131.76,131.7,12.42465266]
[1726529377727,21.8825,131.76,131.69,9.39575734]
[1726529377728,21.8825,131.76,131.71,12.42465266]
[1726529377934,21.8825,131.76,131.71,13.94299729]
[1726529383263,21.8825,131.76,131.71,12.42465266]
[1726529388466,21.8825,131.76,131.72,12.42465266]
[1726529388673,21.8825,131.76,131.73,12.42465266]
[1726529392455,21.8825,131.76,131.72,12.42465266]
[1726529392660,21.8825,131.76,131.72,13.94266425]
[1726529394078,21.8825,131.76,131.72,12.42465266]
[1726529396265,21.8825,131.76,131.73,1.51801046]
[1726529396667,21.8825,131.76,131.72,12.42465266]
[1726529405769,21.8825,131.76,131.73,13.94196807]
[1726529405971,15.2552,131.76,131.74,13.9418529]
[1726529406177,15.2552,131.76,131.74,12.42465266]
[1726529410875,0.2584707,131.78,131.74,12.42465266]
[1726529412095,0.2584707,131.78,131.75,1.51787242]
[1726529412264,0.2584707,131.78,131.76,12.42465266]
[1726529412582,0.2584707,131.78,131.73,20.0]
[1726529412793,0.2584707,131.78,131.73,32.42465266]
[1726529414489,0.2584707,131.78,131.74,12.42465266]
[1726529414692,0.2584707,131.78,131.74,13.94252364]
[1726529416090,0.2584707,131.78,131.74,12.42465266]
[1726529416297,0.2584707,131.78,131.75,13.94238812]
[1726529416484,0.2584707,131.78,131.76,12.42465266]
[1726529418278,0.2584707,131.78,131.77,12.42465266]
[1726529418995,0.2584707,131.78,131.76,12.42465266]
[1726529419169,0.2584707,131.78,131.75,12.42465266]
[1726529426292,0.2584707,131.78,131.75,21.86686164]
[1726529426495,0.2584707,131.78,131.75,12.42465266]
[1726529426797,0.2584707,131.78,131.75,21.86735456]
[1726529426978,0.2584707,131.78,131.75,12.42465266]
[1726529427178,0.2584707,131.78,131.75,21.86735456]
[1726529427480,0.2584707,131.78,131.75,12.42465266]
[1726529427886,0.2584707,131.78,131.76,12.42465266]
[1726529430278,0.2584707,131.78,131.77,12.42465266]
[1726529433078,0.2584707,131.78,131.75,9.44070107]
[1726529433297,0.2584707,131.78,131.75,12.42465266]
[1726529435095,6.3780707,131.78,131.7,11.80044772]
[1726529435304,6.3780707,131.78,131.72,12.42465266]
[1726529435504,6.3780707,131.78,131.73,15.56503073]
[1726529436007,6.3780707,131.78,131.73,27.98968339]
[1726529436184,6.3780707,131.78,131.73,12.42465266]
[1726529437180,6.3780707,131.78,131.73,16.18915563]
[1726529437379,6.3780707,131.78,131.73,12.42465266]
[1726529437680,6.3780707,131.78,131.73,16.18915563]
[1726529438001,6.3780707,131.78,131.73,12.42465266]
[1726529438212,6.3780707,131.78,131.73,16.18915563]
[1726529438386,6.3780707,131.78,131.73,12.42465266]
[1726529438585,6.3780707,131.78,131.73,16.18915563]
[1726529438789,6.3780707,131.78,131.73,12.42465266]
[1726529438976,6.3780707,131.78,131.73,16.18915563]
[1726529439181,6.3780707,131.78,131.73,12.42465266]
[1726529439405,6.3780707,131.78,131.73,16.18915563]
[1726529439604,6.3780707,131.78,131.73,12.42465266]
[1726529451318,15.3885,131.77,131.68,7.94218846]
[1726529451621,15.3885,131.77,131.7,42.42465266]
[1726529452322,22.9776,131.77,131.7,42.42465266]
[1726529452916,22.9776,131.77,131.7,12.42465266]
[1726529453218,22.9776,131.77,131.66,43.776884]
[1726529453219,6.2143,131.76,131.66,43.776884]
[1726529453520,6.2143,131.76,131.7,12.42465266]
[1726529453823,15.3047,131.75,131.7,12.42465266]
[1726529456617,22.8949,131.75,131.68,20.0]
[1726529456823,22.8949,131.75,131.68,12.42465266]
[1726529460413,22.8949,131.75,131.69,12.42465266]
[1726529463004,15.3047,131.75,131.7,12.42465266]
[1726529463408,15.3047,131.75,131.72,12.42465266]
[1726529463813,15.3047,131.75,131.73,12.42465266]
[1726529464123,15.3047,131.75,131.74,12.42465266]
[1726529466324,15.5659707,131.78,131.74,12.42465266]
[1726529466521,15.5659707,131.78,131.75,12.42465266]
[1726529466914,15.5659707,131.78,131.75,42.42465266]
[1726529468009,15.5659707,131.78,131.76,12.42465266]
[1726529468540,0.2584707,131.78,131.77,12.42465266]
[1726529468741,0.2584707,131.78,131.77,13.94240772]
[1726529469432,0.2584707,131.78,131.77,43.94240772]
[1726529469635,0.2584707,131.78,131.77,42.42465266]
[1726529474217,0.2584707,131.78,131.77,30.0]
[1726529475833,0.2584707,131.78,131.76,12.42465266]
[1726529476943,0.2584707,131.78,131.77,30.0]
[1726529477837,0.2584707,131.78,131.75,12.42465266]
[1726529480152,0.2584707,131.78,131.76,12.42465266]
[1726529484029,0.2584707,131.78,131.77,12.42465266]
[1726529487259,0.2584707,131.78,131.76,12.42465266]
[1726529488756,0.2584707,131.78,131.75,12.42465266]
[1726529489164,0.2584707,131.78,131.77,12.42465266]
[1726529507463,0.2584707,131.78,131.77,42.42465266]
[1726529512988,0.2584707,131.78,131.77,30.0]
[1726529513167,0.2584707,131.78,131.74,9.37910902]
[1726529513367,0.2584707,131.78,131.73,12.42465266]
[1726529513573,0.2584707,131.78,131.72,9.37910902]
[1726529513762,0.2584707,131.78,131.72,12.42465266]
[1726529515377,0.2584707,131.78,131.73,12.42465266]
[1726529515577,0.2584707,131.78,131.74,12.42465266]
[1726529515786,0.2584707,131.78,131.75,12.42465266]
[1726529515968,0.2584707,131.78,131.76,12.42465266]
[1726529516573,0.2584707,131.78,131.77,12.42465266]
[1726529517786,0.2584707,131.78,131.76,12.42465266]
[1726529521586,0.2584707,131.78,131.73,9.38235814]
[1726529521796,0.2584707,131.78,131.75,12.42465266]
[1726529524193,0.2584707,131.78,131.76,12.42465266]
[1726529524986,0.2584707,131.78,131.75,12.42465266]
[1726529530295,0.2584707,131.78,131.73,9.38090737]
[1726529530593,0.2584707,131.78,131.75,12.42465266]
[1726529534175,0.2584707,131.78,131.76,12.42465266]
[1726529537581,0.2584707,131.78,131.75,12.42465266]
[1726529542907,0.2584707,131.78,131.76,12.42465266]
[1726529543111,0.2584707,131.78,131.77,12.42465266]
[1726529546488,0.2584707,131.78,131.76,12.42465266]
[1726529546907,0.2584707,131.78,131.73,43.776884]
[1726529547096,0.2584707,131.78,131.75,12.42465266]
[1726529549687,0.2584707,131.78,131.74,12.42465266]
[1726529553612,16.4537707,131.78,131.73,12.42465266]
[1726529554120,6.2882,131.77,131.71,12.42465266]
[1726529555405,6.2882,131.77,131.72,12.42465266]
[1726529556621,6.2882,131.77,131.71,12.42465266]
[1726529559724,6.2882,131.77,131.7,12.42465266]
[1726529560217,16.0111,131.76,131.7,12.42465266]
[1726529560523,16.0111,131.76,131.67,23.776884]
[1726529560524,16.0111,131.76,131.69,12.42465266]
[1726529562025,16.0111,131.76,131.7,12.42465266]
[1726529564629,16.0111,131.76,131.71,12.42465266]
[1726529565926,16.0111,131.76,131.72,12.42465266]
[1726529566106,16.0111,131.76,131.73,12.42465266]
[1726529568920,16.0111,131.76,131.67,23.776884]
[1726529568921,16.0111,131.76,131.74,12.42465266]
[1726529569103,0.2584707,131.78,131.75,12.42465266]
[1726529570312,0.2584707,131.78,131.75,42.42465266]
[1726529570837,0.2584707,131.78,131.77,12.42465266]
[1726529571337,0.2584707,131.78,131.77,42.42465266]
[1726529573520,0.2584707,131.82,131.78,29.7415293]
[1726529573713,0.2584707,131.82,131.8,12.42465266]
[1726529574635,0.2584707,131.82,131.8,42.42465266]
[1726529576336,0.2584707,131.82,131.81,12.42465266]
[1726529576544,0.2584707,131.82,131.81,42.42465266]
[1726529580438,0.2584707,131.82,131.81,30.0]
[1726529585052,0.2584707,131.82,131.81,42.42465266]
[1726529585855,0.2584707,131.82,131.81,30.0]
[1726529595160,0.2584707,131.82,131.81,42.42465266]
[1726529596964,0.2584707,131.82,131.81,30.0]
[1726529607245,27.8445707,131.82,131.81,30.0]
[1726529607748,7.8445707,131.82,131.81,30.0]
[1726529607966,27.8445707,131.82,131.81,30.0]
[1726529608268,20.2584707,131.82,131.81,30.0]
[1726529616664,20.2584707,131.82,131.76,12.42465266]
[1726529617680,20.2584707,131.82,131.78,30.0]
[1726529626181,7.8448707,131.82,131.78,30.0]
[1726529629781,0.2584707,131.82,131.78,30.0]
[1726529630271,7.8446707,131.82,131.78,30.0]
[1726529636778,0.2584707,131.82,131.78,30.0]
[1726529640315,7.8446707,131.82,131.78,30.0]
[1726529642690,7.5871,131.81,131.78,30.0]
[1726529644803,7.5871,131.81,131.77,30.0]
[1726529646989,31.6215547,131.82,131.77,30.0]
[1726529647302,7.8446707,131.82,131.77,30.0]
[1726529647698,0.2584707,131.82,131.77,31.51768307]
[1726529647878,0.2584707,131.82,131.77,43.94233573]
[1726529648308,0.2584707,131.82,131.77,42.42465266]
[1726529648602,0.2584707,131.82,131.78,12.42465266]
[1726529648799,0.2584707,131.82,131.8,30.0]
[1726529649195,0.2584707,131.82,131.81,13.94203648]
[1726529649780,0.2584707,131.82,131.81,43.94203648]
[1726529649999,0.2584707,131.82,131.81,42.42465266]
[1726529651283,0.2584707,131.82,131.81,86.20153666]
[1726529651484,0.2584707,131.82,131.81,110.8830202]
[1726529652291,0.2584707,131.86,131.82,23.776884]
[1726529652598,0.2584707,131.86,131.85,12.42465266]
[1726529653493,0.2584707,131.86,131.85,42.42465266]
[1726529653688,0.2584707,131.86,131.85,52.70684821]
[1726529654207,0.2584707,131.86,131.85,43.94133211]
[1726529654403,0.2584707,131.86,131.85,42.42465266]
[1726529654915,0.2584707,131.86,131.85,52.70646197]
[1726529655507,0.2584707,131.86,131.85,42.42465266]
[1726529655891,0.2584707,131.86,131.85,31.51668016]
[1726529656092,0.2584707,131.86,131.85,42.42465266]
[1726529656287,0.2584707,131.86,131.85,30.0]
[1726529656591,16.1456707,131.9,131.89,23.776884]
[1726529656592,0.2584707,131.9,131.89,23.776884]
[1726529656790,0.2584707,131.9,131.89,86.20153666]
[1726529656990,0.2584707,131.94,131.89,86.20153666]
[1726529656991,0.2584707,131.94,131.91,43.776884]
[1726529657207,0.2584707,131.94,131.93,12.42465266]
[1726529657406,0.2584707,131.94,131.93,13.94018066]
[1726529657819,0.2584707,131.94,131.93,43.94018066]
[1726529657991,0.2584707,131.94,131.93,31.515528]
[1726529658193,0.2584707,131.98,131.93,87.71706493]
[1726529658410,0.2584707,131.98,131.97,12.42465266]
[1726529658705,0.2584707,131.98,131.97,30.0]
[1726529659815,0.2584707,131.98,131.97,42.42465266]
[1726529664444,0.2584707,131.98,131.97,30.0]
[1726529666520,0.2584707,131.98,131.97,12.42465266]
[1726529668214,0.2584707,131.98,131.96,12.42465266]
[1726529668422,0.2584707,131.98,131.95,12.42465266]
[1726529668616,0.2584707,131.98,131.96,30.0]
[1726529669918,0.2584707,131.98,131.96,43.94000678]
[1726529671519,0.2584707,131.98,131.97,12.42465266]
[1726529671727,0.2584707,131.98,131.97,43.93997169]
[1726529671908,0.2584707,131.98,131.97,67.71685569]
[1726529672321,0.2584707,131.98,131.97,66.20153666]
[1726529672521,0.2584707,131.98,131.97,30.0]
[1726529673335,0.2584707,131.98,131.97,42.42465266]
[1726529678415,0.2584707,131.98,131.97,30.0]
[1726529678620,0.2584707,131.98,131.97,42.42465266]
[1726529687450,0.2584707,131.98,131.97,30.0]
[1726529687917,0.2584707,131.98,131.97,42.42465266]
[1726529703535,0.2584707,131.98,131.97,30.0]
[1726529703741,0.2584707,131.98,131.97,42.42465266]
[1726529708070,0.2584707,131.98,131.97,30.0]
[1726529708258,0.2584707,131.98,131.93,30.0]
[1726529708440,0.2584707,131.98,131.94,12.42465266]
[1726529708768,0.2584707,131.98,131.95,12.42465266]
[1726529709446,0.2584707,131.98,131.94,12.42465266]
[1726529711951,0.2584707,131.98,131.95,1.51559776]
[1726529712261,0.2584707,131.98,131.95,12.42465266]
[1726529714162,0.2584707,131.98,131.96,12.42465266]
[1726529714565,0.2584707,131.98,131.95,12.42465266]
[1726529716048,0.2584707,131.98,131.91,20.0]
[1726529716248,0.2584707,131.98,131.92,30.0]
[1726529716653,0.2584707,131.98,131.91,12.42465266]
[1726529716654,7.8355707,131.98,131.91,12.42465266]
[1726529716857,0.2584707,131.98,131.91,12.42465266]
[1726529717670,31.6123547,131.98,131.91,12.42465266]
[1726529717849,24.0353547,131.98,131.91,12.42465266]
[1726529718050,0.2584707,131.98,131.95,12.42465266]
[1726529718444,0.2584707,131.98,131.94,12.42465266]
[1726529719475,0.2584707,131.98,131.95,30.0]
[1726529723075,0.2584707,131.98,131.91,32.42465266]
[1726529723375,0.2584707,131.98,131.92,30.0]
[1726529723956,0.2584707,131.98,131.91,32.42465266]
[1726529725079,0.2584707,131.98,131.92,12.42465266]
[1726529727579,0.2584707,131.98,131.93,20.0]
[1726529727759,0.2584707,131.98,131.96,12.42465266]
[1726529728958,0.2584707,131.98,131.95,12.42465266]
[1726529731672,0.2584707,131.98,131.96,12.42465266]
[1726529732877,0.2584707,131.98,131.95,12.42465266]